fUSD/lending_fUSD_20240804
["ID","MTS","AMOUNT","RATE_DAILY","PERIOD"]
[334134194,1722790249497,-500.0,0.00023013,9]
[334134195,1722790249507,-500.0,0.00023013,9]
[334134196,1722790249517,-793.75,0.00023013,9]
[334134197,1722790249527,-500.0,0.00023013,9]
[334134198,1722790249537,-153.33,0.00023013,9]
[334134199,1722790249547,-500.0,0.00023013,9]
[334134200,1722790249557,-500.0,0.00023013,9]
[334134201,1722790249569,-595.58,0.00023013,9]
[334134202,1722790249582,-500.0,0.00023013,9]
[334134203,1722790249591,-998.71,0.00023013,9]
[334134204,1722790249601,-193.18,0.00023013,9]
[334134205,1722790249611,-478.26,0.00023013,9]
[334134206,1722790249621,-1006.48,0.00023013,9]
[334134207,1722790249631,-302.67,0.00023013,9]
[334134208,1722790249642,-500.0,0.00023013,9]
[334134209,1722790249655,-500.0,0.00023013,9]
[334134210,1722790249666,-500.0,0.00023013,9]
[334134211,1722790249676,-500.0,0.00023013,9]
[334134212,1722790249686,-500.0,0.00023013,9]
[334134213,1722790249696,-540.51,0.00023013,9]
[334134214,1722790249713,-500.0,0.00023013,9]
[334134215,1722790249723,-500.0,0.00023013,9]
[334134216,1722790249734,-500.0,0.00023013,9]
[334134217,1722790249744,-500.0,0.00023013,9]
[334134218,1722790249753,-500.0,0.00023013,9]
[334134219,1722790249763,-618.87,0.00023013,9]
[334134220,1722790249773,-500.0,0.00023013,9]
[334134221,1722790249783,-500.0,0.00023013,9]
[334134222,1722790249792,-500.0,0.00023013,9]
[334134223,1722790249802,-500.0,0.00023013,9]
[334134224,1722790249812,-500.0,0.00023013,9]
[334134225,1722790249822,-616.71440832,0.00023013,9]
[334134226,1722790249832,-500.0,0.00023013,9]
[334134227,1722790249842,-500.0,0.00023013,9]
[334134228,1722790249851,-500.0,0.00023013,9]
[334134229,1722790249860,-500.0,0.00023013,9]
[334134230,1722790249870,-500.0,0.00023013,9]
[334134231,1722790249880,-500.0,0.00023013,9]
[334134232,1722790249889,-500.0,0.00023013,9]
[334134233,1722790249899,-500.0,0.00023013,9]
[334134234,1722790249909,-186.68203916,0.00023013,9]
[334134235,1722790249919,-529.4,0.00023013,9]
[334134236,1722790249928,-500.0,0.00023013,9]
[334134237,1722790249938,-500.0,0.00023013,9]
[334134238,1722790249951,-500.0,0.00023013,9]
[334134239,1722790249960,-500.0,0.00023013,9]
[334134240,1722790249970,-500.0,0.00023013,9]
[334134241,1722790249980,-500.0,0.00023013,9]
[334134242,1722790249989,-500.0,0.00023013,9]
[334134243,1722790249999,-500.0,0.00023013,9]
[334134244,1722790250008,-500.0,0.00023013,9]
[334134245,1722790250018,-500.0,0.00023013,9]
[334134246,1722790250028,-500.0,0.00023013,9]
[334134247,1722790250037,-500.0,0.00023013,9]
[334134248,1722790250047,-500.0,0.00023013,9]
[334134249,1722790250056,-187.69178597,0.00023013,9]
[334134250,1722790250065,-500.0,0.00023013,9]
[334134251,1722790250075,-500.0,0.00023013,9]
[334134252,1722790250085,-500.0,0.00023013,9]
[334134253,1722790250094,-665.39,0.00023013,9]
[334134254,1722790250104,-555.88,0.00023013,9]
[334134255,1722790250114,-500.0,0.00023013,9]
[334134256,1722790250124,-500.0,0.00023013,9]
[334134257,1722790250133,-500.0,0.00023013,9]
[334134258,1722790250143,-500.0,0.00023013,9]
[334134259,1722790250153,-690.21,0.00023013,9]
[334134260,1722790250163,-500.0,0.00023013,9]
[334134261,1722790250172,-500.0,0.00023013,9]
[334134262,1722790250182,-500.0,0.00023013,9]
[334134263,1722790250191,-500.0,0.00023013,9]
[334134264,1722790250203,-500.0,0.00023013,9]
[334134265,1722790250213,-500.0,0.00023013,9]
[334134266,1722790250223,-500.0,0.00023013,9]
[334134267,1722790250232,-500.0,0.00023013,9]
[334134268,1722790250242,-500.0,0.00023013,9]
[334134269,1722790250251,-712.46,0.00023013,9]
[334134270,1722790250261,-500.0,0.00023013,9]
[334134271,1722790250271,-500.0,0.00023013,9]
[334134272,1722790250281,-500.0,0.00023013,9]
[334134273,1722790250291,-500.0,0.00023013,9]
[334134274,1722790250301,-500.0,0.00023013,9]
[334134275,1722790250310,-454.05,0.00023013,9]
[334134276,1722790250319,-500.0,0.00023013,9]
[334134277,1722790250329,-500.0,0.00023013,9]
[334134278,1722790250338,-500.0,0.00023013,9]
[334134279,1722790250348,-581.36,0.00023013,9]
[334134280,1722790250357,-500.0,0.00023013,9]
[334134281,1722790250367,-435.2,0.00023013,9]
[334134282,1722790250376,-501.10455416,0.00023013,9]
[334134283,1722790250386,-559.74,0.00023013,9]
[334134284,1722790250396,-238.09,0.00023013,9]
[334134285,1722790250405,-827.11,0.00023013,9]
[334134286,1722790250415,-164.2653405,0.00023013,9]
[334134287,1722790250424,-500.0,0.00023013,9]
[334134288,1722790250435,-500.0,0.00023013,9]
[334134289,1722790250444,-500.0,0.00023013,9]
[334134290,1722790250458,-500.0,0.00023013,9]
[334134291,1722790250468,-500.0,0.00023013,9]
[334134292,1722790250478,-500.0,0.00023013,9]
[334134293,1722790250487,-1726.52,0.00023013,9]
[334134294,1722790250496,-500.0,0.00023013,9]
[334134295,1722790250505,-500.0,0.00023013,9]
[334134296,1722790250515,-473.5,0.00023013,9]
[334134297,1722790250801,-500.0,0.00023013,9]
[334134298,1722790250810,-500.0,0.00023013,9]
[334134299,1722790250820,-500.0,0.00023013,9]
[334134300,1722790250829,-500.0,0.00023013,9]
[334134301,1722790250838,-500.0,0.00023013,9]
[334134302,1722790250847,-500.0,0.00023013,9]
[334134303,1722790250857,-500.0,0.00023013,9]
[334134304,1722790250866,-500.0,0.00023013,9]
[334134305,1722790250875,-500.0,0.00023013,9]
[334134306,1722790250885,-656.42,0.00023013,9]
[334134307,1722790250895,-551.2,0.00023013,9]
[334134308,1722790250904,-500.0,0.00023013,9]
[334134309,1722790250913,-738.4,0.00023013,9]
[334134310,1722790250923,-500.0,0.00023013,9]
[334134311,1722790250933,-500.0,0.00023013,9]
[334134312,1722790250942,-500.0,0.00023013,9]
[334134313,1722790250954,-500.0,0.00023013,9]
[334134314,1722790250963,-500.0,0.00023013,9]
[334134315,1722790250972,-500.0,0.00023013,9]
[334134316,1722790250981,-802.47,0.00023013,9]
[334134317,1722790250991,-500.0,0.00023013,9]
[334134318,1722790251000,-500.0,0.00023013,9]
[334134319,1722790251009,-500.0,0.00023013,9]
[334134320,1722790251019,-500.0,0.00023013,9]
[334134321,1722790251029,-500.0,0.00023013,9]
[334134322,1722790251038,-500.0,0.00023013,9]
[334134323,1722790251048,-500.0,0.00023013,9]
[334134324,1722790251057,-500.0,0.00023013,9]
[334134325,1722790251067,-500.0,0.00023013,9]
[334134326,1722790251076,-500.0,0.00023013,9]
[334134327,1722790251086,-945.35,0.00023013,9]
[334134328,1722790251095,-500.0,0.00023013,9]
[334134329,1722790251104,-500.0,0.00023013,9]
[334134330,1722790251114,-500.0,0.00023013,9]
[334134331,1722790251123,-500.0,0.00023013,9]
[334134332,1722790251133,-1165.83,0.00023013,9]
[334134333,1722790251143,-500.0,0.00023013,9]
[334134334,1722790251152,-500.0,0.00023013,9]
[334134335,1722790251161,-900.32,0.00023013,9]
[334134336,1722790251172,-500.0,0.00023013,9]
[334134337,1722790251182,-589.62,0.00023013,9]
[334134338,1722790251193,-567.58,0.00023013,9]
[334134339,1722790251204,-2731.09,0.00023013,9]
[334134340,1722790251214,-500.0,0.00023013,9]
[334134341,1722790251224,-500.0,0.00023013,9]
[334134342,1722790251235,-500.0,0.00023013,9]
[334134343,1722790251245,-1149.36,0.00023013,9]
[334134344,1722790251255,-500.0,0.00023013,9]
[334134345,1722790251263,-500.0,0.00023013,9]
[334134346,1722790251272,-500.0,0.00023013,9]
[334134347,1722790251282,-690.32,0.00023013,9]
[334134348,1722790251291,-1196.04,0.00023013,9]
[334134349,1722790251302,-500.0,0.00023013,9]
[334134350,1722790251312,-500.0,0.00023013,9]
[334134351,1722790251321,-4579.67,0.00023013,9]
[334134352,1722790251331,-747.54,0.00023013,9]
[334134353,1722790251340,-500.0,0.00023013,9]
[334134354,1722790251350,-7586.12,0.00023013,9]
[334134355,1722790251359,-500.0,0.00023013,9]
[334134356,1722790251368,-499.34,0.00023013,9]
[334134357,1722790251378,-500.0,0.00023013,9]
[334134358,1722790251387,-500.0,0.00023013,9]
[334134359,1722790251397,-500.0,0.00023013,9]
[334134360,1722790251406,-500.0,0.00023013,9]
[334134361,1722790251415,-644.6,0.00023013,9]
[334134362,1722790251425,-528.89,0.00023013,9]
[334134363,1722790251435,-500.0,0.00023013,9]
[334134364,1722790251444,-2002.47,0.00023013,9]
[334134365,1722790251455,-500.0,0.00023013,9]
[334134366,1722790251465,-500.0,0.00023013,9]
[334134367,1722790251474,-500.0,0.00023013,9]
[334134368,1722790251484,-500.0,0.00023013,9]
[334134369,1722790251494,-500.0,0.00023013,9]
[334134370,1722790251504,-567.02,0.00023013,9]
[334134371,1722790251515,-3001.41,0.00023013,9]
[334134372,1722790251524,-517.14,0.00023013,9]
[334134373,1722790251534,-500.0,0.00023013,9]
[334134374,1722790251543,-500.0,0.00023013,9]
[334134375,1722790251552,-501.85267837,0.00023013,9]
[334134376,1722790251565,-500.0,0.00023013,9]
[334134377,1722790251575,-500.0,0.00023013,9]
[334134378,1722790251584,-500.0,0.00023013,9]
[334134379,1722790251593,-500.0,0.00023013,9]
[334134380,1722790251603,-500.0,0.00023013,9]
[334134381,1722790251613,-500.0,0.00023013,9]
[334134382,1722790251622,-3434.55,0.00023013,9]
[334134383,1722790251631,-500.0,0.00023013,9]
[334134384,1722790251641,-576.65,0.00023013,9]
[334134385,1722790251652,-751.38,0.00023013,9]
[334134386,1722790251662,-500.0,0.00023013,9]
[334134387,1722790251672,-638.48,0.00023013,9]
[334134388,1722790251681,-5823.0,0.00023013,9]
[334134389,1722790251690,-500.0,0.00023013,9]
[334134390,1722790251701,-500.0,0.00023013,9]
[334134391,1722790251711,-500.0,0.00023013,9]
[334134392,1722790251721,-500.0,0.00023013,9]
[334134393,1722790251730,-500.0,0.00023013,9]
[334134394,1722790251740,-500.0,0.00023013,9]
[334134395,1722790251749,-500.0,0.00023013,9]
[334134396,1722790251759,-500.0,0.00023013,9]
[334134397,1722790251769,-3058.58,0.00023013,9]
[334134398,1722790251779,-12170.4,0.00023013,9]
[334134399,1722790251788,-527.6,0.00023013,9]
[334134400,1722790251798,-915.69,0.00023013,9]
[334134401,1722790251807,-500.0,0.00023013,9]
[334134402,1722790251817,-623.48,0.00023013,9]
[334134403,1722790251826,-669.56,0.00023013,9]
[334134404,1722790251835,-500.0,0.00023013,9]
[334134405,1722790251845,-500.0,0.00023013,9]
[334134406,1722790251854,-500.0,0.00023013,9]
[334134407,1722790251864,-500.0,0.00023013,9]
[334134408,1722790251873,-500.0,0.00023013,9]
[334134409,1722790251883,-5976.93,0.00023013,9]
[334134410,1722790251892,-500.0,0.00023013,9]
[334134411,1722790251901,-500.0,0.00023013,9]
[334134412,1722790251911,-500.0,0.00023013,9]
[334134413,1722790251921,-500.0,0.00023013,9]
[334134414,1722790251930,-500.0,0.00023013,9]
[334134415,1722790251940,-500.0,0.00023013,9]
[334134416,1722790251951,-500.0,0.00023013,9]
[334134417,1722790251960,-1434.73,0.00023013,9]
[334134418,1722790251970,-500.0,0.00023013,9]
[334134419,1722790251979,-500.0,0.00023013,9]
[334134420,1722790251989,-500.0,0.00023013,9]
[334134421,1722790251999,-500.0,0.00023013,9]
[334134422,1722790252009,-500.0,0.00023013,9]
[334134423,1722790252019,-500.0,0.00023013,9]
[334134424,1722790252029,-891.91,0.00023013,9]
[334134425,1722790252038,-500.0,0.00023013,9]
[334134426,1722790252047,-610.96,0.00023013,9]
[334134427,1722790252056,-500.0,0.00023013,9]
[334134428,1722790252066,-794.7,0.00023013,9]
[334134429,1722790252075,-500.0,0.00023013,9]
[334134430,1722790252084,-737.66,0.00023013,9]
[334134431,1722790252094,-500.0,0.00023013,9]
[334134432,1722790252103,-500.0,0.00023013,9]
[334134433,1722790252112,-500.0,0.00023013,9]
[334134434,1722790252122,-1358.18,0.00023013,9]
[334134435,1722790252131,-200.0,0.00023013,7]
[334134436,1722790252141,-570.15,0.00023013,9]
[334134437,1722790252151,-500.0,0.00023013,9]
[334134438,1722790252160,-500.0,0.00023013,9]
[334134439,1722790252170,-500.0,0.00023013,9]
[334134440,1722790252179,-500.0,0.00023013,9]
[334134441,1722790252189,-677.42,0.00023013,9]
[334134442,1722790252200,-500.0,0.00023013,9]
[334134443,1722790252210,-2461.71,0.00023013,9]
[334134444,1722790252219,-638.04,0.00023013,9]
[334134445,1722790252228,-2019.2,0.00023013,9]
[334134446,1722790252238,-500.0,0.00023013,9]
[334134447,1722790252247,-500.0,0.00023013,9]
[334134448,1722790252257,-500.0,0.00023013,9]
[334134449,1722790252266,-500.0,0.00023013,9]
[334134450,1722790252275,-500.0,0.00023013,9]
[334134451,1722790252285,-500.0,0.00023013,9]
[334134452,1722790252294,-500.0,0.00023013,9]
[334134453,1722790252304,-2695.62,0.00023013,9]
[334134454,1722790252314,-500.0,0.00023013,9]
[334134455,1722790252323,-42.55262992,0.00023013,9]
[334134456,1722790252663,-457.44737008,0.00023013,9]
[334134457,1722790252672,-2226.24,0.00023013,9]
[334134458,1722790252682,-500.0,0.00023013,9]
[334134459,1722790252692,-500.0,0.00023013,9]
[334134460,1722790252701,-618.75,0.00023013,9]
[334134461,1722790252710,-1116.05,0.00023013,9]
[334134462,1722790252719,-500.0,0.00023013,9]
[334134463,1722790252728,-500.0,0.00023013,9]
[334134464,1722790252738,-500.0,0.00023013,9]
[334134465,1722790252747,-500.0,0.00023013,9]
[334134466,1722790252756,-550.55,0.00023013,9]
[334134467,1722790252766,-500.0,0.00023013,9]
[334134468,1722790252774,-200.80298753,0.00023013,9]
[334134469,1722790252786,-299.19701247,0.00023013,9]
[334134470,1722790252796,-500.0,0.00023013,9]
[334134471,1722790252805,-728.19,0.00023013,9]
[334134472,1722790252815,-706.72,0.00023013,9]
[334134473,1722790252825,-500.0,0.00023013,9]
[334134474,1722790252834,-500.0,0.00023013,9]
[334134475,1722790252844,-500.0,0.00023013,9]
[334134476,1722790252853,-500.0,0.00023013,9]
[334134477,1722790252862,-500.0,0.00023013,9]
[334134478,1722790252872,-938.52,0.00023013,9]
[334134479,1722790252881,-500.0,0.00023013,9]
[334134480,1722790252890,-1064.56,0.00023013,9]
[334134481,1722790252900,-500.0,0.00023013,9]
[334134482,1722790252909,-500.0,0.00023013,9]
[334134483,1722790252918,-500.0,0.00023013,9]
[334134484,1722790252928,-500.0,0.00023013,9]
[334134485,1722790252937,-561.46,0.00023013,9]
[334134486,1722790252947,-1007.24,0.00023013,9]
[334134487,1722790252962,-500.0,0.00023013,9]
[334134488,1722790252975,-500.0,0.00023013,9]
[334134489,1722790252984,-500.0,0.00023013,9]
[334134490,1722790252994,-808.47,0.00023013,9]
[334134491,1722790253003,-500.0,0.00023013,9]
[334134492,1722790253013,-350.83202434,0.00023013,9]
[334134493,1722790253023,-500.0,0.00023013,9]
[334134494,1722790253032,-500.0,0.00023013,9]
[334134495,1722790253041,-500.0,0.00023013,9]
[334134496,1722790253050,-501.54928372,0.00023013,9]
[334134497,1722790253060,-500.0,0.00023013,9]
[334134498,1722790253070,-758.77,0.00023013,9]
[334134499,1722790253079,-500.0,0.00023013,9]
[334134500,1722790253088,-500.0,0.00023013,9]
[334134501,1722790253156,-500.0,0.00023013,9]
[334134502,1722790253165,-896.09,0.00023013,9]
[334134503,1722790253174,-1418.54,0.00023013,9]
[334134504,1722790253183,-1046.28,0.00023013,9]
[334134505,1722790253192,-926.87,0.00023013,9]
[334134506,1722790253207,-500.0,0.00023013,9]
[334134507,1722790253217,-767.62,0.00023013,9]
[334134508,1722790253226,-1112.54480009,0.00023013,9]
[334134509,1722790253238,-244.13519991,0.00023013,9]
[334134510,1722790253248,-500.938192,0.00023013,9]
[334134514,1722790383891,800.0,0.00026986,120]
[334134515,1722790396775,1000.0,0.00026064,120]
[334134516,1722790397210,1000.0,0.00026783,120]
[334134517,1722790405177,500.0,0.00026064,120]
[334134518,1722790422706,200.0,0.00026274,120]
[334134519,1722790481912,155.81,0.00025227,120]
[334134520,1722790566914,800.0,0.00026986,120]
[334134521,1722790687874,166.43863397,0.00027,120]
[334134522,1722790866564,800.0,0.00026986,120]
[334134523,1722790929595,800.0,0.00026986,120]
[334134524,1722790971226,208.04,0.00025157,120]
[334134526,1722790988515,800.0,0.00026986,120]
[334134527,1722790996443,1000.0,0.00026066,120]
[334134528,1722790996787,1000.0,0.00026783,120]
[334134529,1722791002490,500.0,0.00026066,120]
[334134530,1722791019846,200.0,0.00026276,120]
[334134531,1722791047115,800.0,0.00026986,120]
[334134532,1722791108419,800.0,0.00026986,120]
[334134561,1722791167570,800.0,0.00026986,120]
[334134582,1722791288906,800.0,0.00026986,120]
[334134583,1722791343258,800.0,0.00026986,120]
[334134603,1722791399868,-1846.6455,0.000104,2]
[334134605,1722791399901,-300.0,0.00010499,2]
[334134606,1722791399936,-2313.26752741,0.000105,2]
[334134607,1722791400008,-364.1640277,0.000105,2]
[334134688,1722791433527,-6615.8924666,0.000105,2]
[334134689,1722791433538,-90.80753368,0.00011,2]
[334134690,1722791433555,-459.19246632,0.00011,2]
[334134691,1722791433565,-171.87,0.00013973,2]
[334134692,1722791433576,-183.86,0.00013973,2]
[334134693,1722791433587,-300.0,0.00015399,2]
[334134694,1722791433600,-2668.53434113,0.000154,2]
[334134695,1722791433612,-184.46565887,0.000154,2]
[334134696,1722791433623,-925.0,0.000154,2]
[334134697,1722791433633,-1727.60615533,0.0001562,2]
[334134698,1722791433649,-268.64415503,0.0001562,2]
[334134699,1722791433665,-560.4,0.0001562,2]
[334134700,1722791433723,-11677.2814241,0.0001562,2]
[334134701,1722791433735,-438.97982347,0.0001562,2]
[334134702,1722791433747,-11898.99844207,0.0001562,2]
[334134703,1722791433761,-420.0,0.00016847,2]
[334134704,1722791433772,-300.93,0.0001726,2]
[334134705,1722791433781,-4103.05217891,0.0001738,2]
[334134706,1722791433791,-233.16,0.00017507,2]
[334134707,1722791433801,-150.0,0.00017532,2]
[334134708,1722791433811,-2500.85158559,0.00017533,2]
[334134709,1722791433820,-587.0,0.0001843,2]
[334134710,1722791433830,-233.27,0.00018564,2]
[334134711,1722791433840,-11469.23,0.00018769,2]
[334134712,1722791433850,-190.33206358,0.00019045,2]
[334134713,1722791433859,-2000.0,0.00019096,2]
[334134714,1722791433869,-150.0,0.00019105,2]
[334134715,1722791433879,-155.0981935,0.00019398,2]
[334134716,1722791433889,-329.94,0.00019454,2]
[334134718,1722791433899,-45029.34200328,0.00019704,2]
[334134719,1722791433920,-3305.916933,0.00019704,2]
[334134720,1722791433936,-638.68830435,0.00019704,2]
[334134741,1722791438405,-300.13534769,0.00019704,2]
[334134745,1722791439444,-662.08589137,0.00019704,2]
[334134746,1722791439460,-5880.0,0.00019704,2]
[334134749,1722791439475,-783.90149949,0.00019704,2]
[334134751,1722791439488,-850.193,0.00019704,2]
[334134754,1722791439510,-14425.33686512,0.00019704,2]
[334134755,1722791439528,-2341.7047272,0.00019704,2]
[334134756,1722791439542,-14055.5,0.00019704,2]
[334134776,1722791440133,-22622.1554285,0.00019704,2]
[334134778,1722791440143,-233.16,0.00019771,2]
[334134780,1722791440153,-208.04,0.00020126,2]
[334134782,1722791440163,-250.0,0.00020127,2]
[334134784,1722791440173,-650.34,0.00020143,2]
[334134787,1722791440184,-823.0,0.00020163,2]
[334134788,1722791440194,-250.0,0.00020165,2]
[334134791,1722791440204,-155.81,0.00020182,2]
[334134792,1722791440214,-522.42518221,0.00020191,2]
[334134794,1722791440223,-367.59994124,0.00020831,2]
[334134796,1722791440233,-211.54413421,0.00020831,2]
[334134798,1722791440243,-233.27,0.00020885,2]
[334134800,1722791440257,-1073.58046777,0.00020899,2]
[334134802,1722791440266,-872.92240179,0.00020899,2]
[334134804,1722791440276,-14174.93825763,0.00020999,2]
[334134806,1722791440286,-2844.173,0.0002139,2]
[334134808,1722791440296,-2333.228,0.0002139,2]
[334134810,1722791440306,-4357.282,0.0002139,2]
[334134812,1722791440316,-1203.0,0.0002139,2]
[334134814,1722791440326,-1075.0,0.0002139,2]
[334134816,1722791440336,-4263.25853779,0.00021677,2]
[334135129,1722791443742,-2500.85158559,0.00017399,2]
[334135132,1722791443752,-1265.53362362,0.00021677,2]
[334135133,1722791443770,-329.94,0.00021885,2]
[334135135,1722791443780,-233.16,0.00022035,2]
[334135137,1722791443789,-852.0,0.00022058,2]
[334135139,1722791443801,-1923.0,0.000222,2]
[334135141,1722791443811,-208.04,0.00022641,2]
[334135143,1722791443820,-38349.87129004,0.00022657,9]
[334135145,1722791443829,-12863.4,0.00022657,9]
[334135147,1722791443839,-155.81,0.00022704,2]
[334135149,1722791443848,-150.0,0.00022785,2]
[334135151,1722791443857,-150.392,0.00022785,2]
[334135153,1722791443866,-621.0,0.00022785,2]
[334135155,1722791443876,-66.00425541,0.00022785,2]
[334135157,1722791443911,-271.45874459,0.00022785,2]
[334135158,1722791443922,-448.0,0.00022785,2]
[334135159,1722791443932,-1552.0,0.00022785,2]
[334135160,1722791443942,-1370.0,0.00022785,2]
[334135161,1722791443951,-1626.181,0.00022785,2]
[334135162,1722791443962,-1161.1655,0.00022893,2]
[334135163,1722791443971,-5291.4073,0.00022893,2]
[334135164,1722791443985,-500.0,0.00022893,2]
[334135165,1722791443994,-176.21753282,0.00022895,2]
[334135166,1722791444005,-1000.0,0.00022913,2]
[334135167,1722791444014,-164.61705305,0.00022913,2]
[334135168,1722791444025,-188.29170795,0.00022913,2]
[334135169,1722791444034,-135455.792527,0.0002299,3]
[334135170,1722791444044,-153.05,0.0002299,2]
[334135171,1722791444054,-38701.6550076,0.00022993,3]
[334135172,1722791444064,-176.21753282,0.00022995,2]
[334135173,1722791444074,-4764.79410383,0.00022995,2]
[334135174,1722791444084,-193.64669932,0.00022995,2]
[334135175,1722791444094,-597.6835086,0.00022995,2]
[334135176,1722791444107,-2737.4609,0.00022995,2]
[334135177,1722791444118,-161046.9720304,0.00023,7]
[334135178,1722791444132,-310980.23662993,0.00023,7]
[334135179,1722791444143,-200.0,0.00023,2]
[334135180,1722791444156,-9675.41375191,0.00023002,3]
[334135181,1722791444167,-75380.06615611,0.00023003,3]
[334135182,1722791444193,-3422.88137661,0.00023003,3]
[334135183,1722791444206,-9468.60000001,0.00023003,3]
[334135184,1722791444220,-511.74477419,0.00023003,3]
[334135185,1722791444231,-6206.22470009,0.00023003,3]
[334135186,1722791444243,-12612.60000007,0.00023003,3]
[334135190,1722791444267,-8502.84801592,0.00023003,3]
[334135192,1722791444276,-461.72432422,0.00023012,2]
[334135194,1722791444286,-981.0,0.00023013,2]
[334135196,1722791444296,-500.0,0.00023013,9]
[334135198,1722791444305,-500.0,0.00023013,9]
[334135200,1722791444315,-500.0,0.00023013,9]
[334135202,1722791444324,-500.0,0.00023013,9]
[334135204,1722791444334,-362.46803917,0.00023013,9]
[334135206,1722791444346,-137.53196083,0.00023013,9]
[334135209,1722791444355,-500.0,0.00023013,9]
[334135211,1722791444364,-515.09594631,0.00023013,9]
[334135214,1722791444374,-500.0,0.00023013,9]
[334135217,1722791444384,-500.0,0.00023013,9]
[334135219,1722791444394,-500.0,0.00023013,9]
[334135221,1722791444403,-500.0,0.00023013,9]
[334135223,1722791444413,-500.0,0.00023013,9]
[334135225,1722791444422,-360.16556646,0.00023013,9]
[334135227,1722791444431,-500.0,0.00023013,9]
[334135229,1722791444440,-291.8257247,0.00023013,9]
[334135231,1722791444450,-500.0,0.00023013,9]
[334135233,1722791444459,-500.0,0.00023013,9]
[334135235,1722791444469,-275.12064493,0.00023013,9]
[334135237,1722791444479,-500.0,0.00023013,9]
[334135239,1722791444489,-500.0,0.00023013,9]
[334135241,1722791444498,-500.0,0.00023013,9]
[334135242,1722791444508,-500.0,0.00023013,9]
[334135244,1722791444518,-528.57467962,0.00023013,9]
[334135246,1722791444527,-500.0,0.00023013,9]
[334135248,1722791444537,-500.0,0.00023013,9]
[334135250,1722791444547,-500.0,0.00023013,9]
[334135252,1722791444556,-500.0,0.00023013,9]
[334135253,1722791444566,-500.0,0.00023013,9]
[334135255,1722791444575,-500.0,0.00023013,9]
[334135257,1722791444584,-500.0,0.00023013,9]
[334135259,1722791444594,-500.0,0.00023013,9]
[334135261,1722791444606,-500.0,0.00023013,9]
[334135263,1722791444615,-500.0,0.00023013,9]
[334135265,1722791444625,-500.0,0.00023013,9]
[334135267,1722791444634,-500.0,0.00023013,9]
[334135269,1722791444643,-186.13,0.00023013,9]
[334135271,1722791444653,-500.0,0.00023013,9]
[334135286,1722791444761,-384.77393066,0.00023013,9]
[334135291,1722791444837,-115.22606934,0.00023013,9]
[334135293,1722791444846,-511.63,0.00023013,9]
[334135295,1722791444858,-500.0,0.00023013,9]
[334135297,1722791444868,-500.0,0.00023013,9]
[334135299,1722791444877,-500.0,0.00023013,9]
[334135301,1722791444887,-500.0,0.00023013,9]
[334135303,1722791444896,-500.0,0.00023013,9]
[334135305,1722791444905,-500.0,0.00023013,9]
[334135307,1722791444915,-500.0,0.00023013,9]
[334135309,1722791444924,-535.92,0.00023013,9]
[334135311,1722791444933,-500.0,0.00023013,9]